fUST/lending_fUST_20240811
["ID","MTS","AMOUNT","RATE_DAILY","PERIOD"]
[334646562,1723385447921,-173.0,0.00019185,2]
[334646563,1723385447930,-173.0,0.00019185,2]
[334646564,1723385447940,-173.0,0.00019185,2]
[334646565,1723385447949,-173.0,0.00019185,2]
[334646566,1723385447959,-173.0,0.00019185,2]
[334646567,1723385447969,-173.0,0.00019185,2]
[334646568,1723385447979,-173.0,0.00019185,2]
[334646569,1723385447990,-173.0,0.00019185,2]
[334646570,1723385448130,-153.0,0.00019185,2]
[334646571,1723385448141,-153.0,0.00019185,2]
[334646572,1723385448150,-153.0,0.00019185,2]
[334646573,1723385448161,-153.0,0.00019185,2]
[334646574,1723385448170,-153.0,0.00019185,2]
[334646575,1723385448180,-153.0,0.00019185,2]
[334646576,1723385448189,-153.0,0.00019185,2]
[334646577,1723385448199,-153.0,0.00019185,2]
[334646578,1723385448209,-153.0,0.00019185,2]
[334646579,1723385448219,-153.0,0.00019185,2]
[334646580,1723385448228,-153.0,0.00019185,2]
[334646581,1723385448237,-153.0,0.00019185,2]
[334646582,1723385448248,-173.0,0.00019185,2]
[334646583,1723385448259,-173.0,0.00019185,2]
[334646584,1723385448269,-173.0,0.00019185,2]
[334646585,1723385448278,-173.0,0.00019185,2]
[334646586,1723385448288,-173.0,0.00019185,2]
[334646587,1723385448298,-173.0,0.00019185,2]
[334646588,1723385448308,-173.0,0.00019185,2]
[334646589,1723385448318,-173.0,0.00019185,2]
[334646590,1723385448328,-173.0,0.00019185,2]
[334646591,1723385448338,-173.0,0.00019185,2]
[334646592,1723385448347,-173.0,0.00019185,2]
[334646593,1723385448357,-173.0,0.00019185,2]
[334646594,1723385448367,-173.0,0.00019185,2]
[334646595,1723385448376,-153.0,0.00019185,2]
[334646596,1723385448385,-153.0,0.00019185,2]
[334646597,1723385448395,-153.0,0.00019185,2]
[334646598,1723385448404,-153.0,0.00019185,2]
[334646599,1723385448414,-153.0,0.00019185,2]
[334646600,1723385448424,-153.0,0.00019185,2]
[334646601,1723385448433,-153.0,0.00019185,2]
[334646602,1723385448442,-173.0,0.00019185,2]
[334646603,1723385448452,-173.0,0.00019185,2]
[334646604,1723385448461,-173.0,0.00019185,2]
[334646605,1723385448470,-173.0,0.00019185,2]
[334646606,1723385448480,-173.0,0.00019185,2]
[334646607,1723385448489,-173.0,0.00019185,2]
[334646608,1723385448498,-173.0,0.00019185,2]
[334646609,1723385448507,-151.0,0.00019232,2]
[334646610,1723385448516,-151.0,0.00019232,2]
[334646611,1723385448526,-174.67965412,0.00019256,2]
[334646612,1723385448535,-154.76012181,0.00019256,2]
[334646613,1723385448545,-309.06792299,0.00019256,2]
[334646614,1723385448554,-154.76012181,0.00019256,2]
[334646615,1723385448563,-2710.33053727,0.00019256,2]
[334646616,1723385448572,-414.28019691,0.00019256,2]
[334646617,1723385448582,-2710.33053727,0.00019256,2]
[334646618,1723385448592,-879.99708554,0.00019349,2]
[334646619,1723385448602,-155.0,0.0001945,2]
[334646620,1723385448611,-154.76012181,0.00019451,2]
[334646621,1723385448621,-154.76012181,0.00019451,2]
[334646622,1723385448630,-154.76012181,0.00019451,2]
[334646623,1723385448640,-154.76012181,0.00019451,2]
[334646624,1723385448649,-319.99782942,0.00019451,2]
[334646625,1723385448658,-205.17764203,0.00019451,2]
[334646626,1723385448667,-223.32245684,0.00019451,2]
[334646627,1723385448676,-319.99782942,0.00019451,2]
[334646628,1723385448686,-154.76012181,0.00019451,2]
[334646629,1723385448695,-154.76012181,0.00019451,2]
[334646630,1723385448704,-154.76012181,0.00019477,2]
[334646631,1723385448713,-1011.055116,0.000195,2]
[334646632,1723385448723,-209.29,0.00019508,2]
[334646633,1723385448732,-500.0,0.00019508,2]
[334646634,1723385448742,-299.796769,0.00019547,2]
[334646635,1723385448750,-154.76012181,0.00019547,2]
[334646636,1723385448760,-459.65038958,0.00019547,4]
[334646637,1723385448769,-151.0,0.00019558,2]
[334646638,1723385448779,-150.0,0.00019607,2]
[334646639,1723385448788,-507.0,0.00019607,2]
[334646640,1723385448797,-1413.0,0.00019678,2]
[334646641,1723385448807,-267.9126531,0.00019781,2]
[334646642,1723385448816,-267.9126531,0.00019781,2]
[334646643,1723385448827,-331.1751213,0.00019781,2]
[334646644,1723385448840,-207.3044688,0.00019781,2]
[334646645,1723385448849,-207.3044688,0.00019781,2]
[334646646,1723385448859,-267.9126531,0.00019781,2]
[334646647,1723385448870,-267.9126531,0.00019781,2]
[334646648,1723385448879,-207.3044688,0.00019781,2]
[334646649,1723385448889,-306.0,0.00019781,2]
[334646650,1723385448900,-185733.35141009,0.000198,2]
[334646651,1723385448909,-154.575148,0.000198,2]
[334646652,1723385448919,-151.0,0.00019885,2]
[334646653,1723385448929,-5638.80425776,0.0001999,2]
[334646654,1723385448938,-157.95166393,0.00019999,2]
[334646655,1723385448948,-156.5036659,0.0002,2]
[334646656,1723385448958,-294.37791673,0.0002,2]
[334646657,1723385448967,-10039.50554608,0.0002,14]
[334646658,1723385448977,-1392.94350918,0.0002,2]
[334646659,1723385448986,-348.11256955,0.0002,2]
[334646660,1723385448996,-250.0,0.0002,2]
[334646661,1723385449007,-1000.0,0.0002,20]
[334646662,1723385449018,-337.26691801,0.0002,2]
[334646663,1723385449028,-154.76012181,0.0002,2]
[334646664,1723385449039,-435.0,0.0002,2]
[334646665,1723385449048,-222.78569548,0.0002,2]
[334646666,1723385449057,-154.76012181,0.0002,2]
[334646667,1723385449067,-1500.0,0.0002,2]
[334646668,1723385449077,-1463.88,0.0002,2]
[334646669,1723385449086,-1093.49324984,0.0002,2]
[334646670,1723385449096,-1000.0,0.0002,2]
[334646671,1723385449105,-151.0,0.00020211,2]
[334646672,1723385449115,-151.0,0.00020211,2]
[334646673,1723385449124,-400.0,0.00020242,2]
[334646674,1723385449134,-400.0,0.00020242,2]
[334646675,1723385449144,-400.0,0.00020242,2]
[334646676,1723385449155,-400.0,0.00020242,2]
[334646677,1723385449165,-400.0,0.00020242,2]
[334646678,1723385449174,-485.74985428,0.00020316,2]
[334646679,1723385449184,-212.26,0.00020324,2]
[334646680,1723385449193,-150.682,0.00020324,2]
[334646681,1723385449203,-150.781,0.00020324,2]
[334646682,1723385449213,-171.4948299,0.00020437,2]
[334646683,1723385449223,-153.0,0.00020437,2]
[334646684,1723385449233,-306.0,0.00020437,2]
[334646685,1723385449243,-500.0,0.00020483,2]
[334646686,1723385449253,-151.0,0.00020538,2]
[334646687,1723385449263,-151.0,0.00020538,2]
[334646688,1723385449273,-500.0,0.00020547,7]
[334646689,1723385449283,-500.0,0.00020547,7]
[334646690,1723385449293,-516.97099816,0.00020547,7]
[334646691,1723385449302,-500.0,0.00020547,5]
[334646692,1723385449313,-500.0,0.00020547,5]
[334646693,1723385449324,-500.0,0.00020547,5]
[334646694,1723385449334,-500.0,0.00020547,5]
[334646695,1723385449344,-500.0,0.00020547,5]
[334646696,1723385449354,-500.0,0.00020547,5]
[334646697,1723385449364,-500.0,0.00020547,5]
[334646698,1723385449374,-500.0,0.00020547,5]
[334646699,1723385449383,-500.0,0.00020547,5]
[334646700,1723385449393,-165.002825,0.00020568,2]
[334646701,1723385449405,-179.69485,0.00020568,2]
[334646702,1723385449415,-179.694851,0.00020568,2]
[334646703,1723385449424,-165.002825,0.00020568,2]
[334646704,1723385449435,-35325.64842738,0.00020607,2]
[334646705,1723385449445,-500.0,0.00020643,7]
[334646706,1723385449454,-500.0,0.00020643,7]
[334646707,1723385449464,-500.0,0.00020643,7]
[334646708,1723385449475,-500.0,0.00020643,7]
[334646709,1723385449484,-500.0,0.00020643,7]
[334646710,1723385449494,-194.18,0.00020643,7]
[334646711,1723385449504,-156.0,0.0002067,4]
[334646712,1723385449514,-154.76012181,0.00020721,2]
[334646713,1723385449525,-504.4557744,0.00020821,3]
[334646714,1723385449536,-509.36450833,0.00020821,3]
[334646715,1723385449546,-504.86483065,0.00020821,3]
[334646716,1723385449556,-36.53973169,0.00020821,3]
[334646717,1723385449970,-472.57070693,0.00020821,3]
[334646718,1723385449980,-272.69301155,0.00020821,3]
[334646719,1723385450007,-609.445,0.00019167,2]
[334646720,1723385450134,-285.55791822,0.0001872,2]
[334646721,1723385450143,-200.0,0.00018873,2]
[334646722,1723385450153,-1644.63563966,0.00019155,7]
[334646723,1723385450162,-85.26879029,0.00019167,2]
[334646724,1723385450174,-155.90530926,0.00019177,2]
[334646725,1723385450184,-372.5719,0.00020242,2]
[334646726,1723385450195,-234.01903848,0.00020821,3]
[334646727,1723385450206,-500.0,0.00020821,3]
[334646728,1723385450217,-500.0,0.00020821,3]
[334646729,1723385450228,-35.57723131,0.00020821,2]
[334646730,1723385450240,-464.42276869,0.00020821,2]
[334646731,1723385450251,-501.52615844,0.00020821,3]
[334646732,1723385450260,-510.66453993,0.00020821,3]
[334646733,1723385450270,-503.59885118,0.00020821,3]
[334646734,1723385450280,-500.0,0.00020821,3]
[334646735,1723385450289,-503.56290974,0.00020821,3]
[334646736,1723385450299,-500.0,0.00020821,3]
[334646737,1723385450308,-500.0,0.00020821,3]
[334646738,1723385450318,-500.0,0.00020821,3]
[334646739,1723385450327,-503.56423679,0.00020821,3]
[334646740,1723385450337,-502.13057031,0.00020821,3]
[334646741,1723385450346,-502.68066236,0.00020821,3]
[334646742,1723385450355,-500.0,0.00020821,3]
[334646743,1723385450365,-500.0,0.00020821,3]
[334646744,1723385450374,-500.0,0.00020821,3]
[334646745,1723385450384,-504.87536699,0.00020821,3]
[334646746,1723385450393,-500.0,0.00020821,3]
[334646747,1723385450403,-500.0,0.00020821,3]
[334646748,1723385450412,-500.0,0.00020821,3]
[334646749,1723385450422,-500.0,0.00020821,3]
[334646750,1723385450431,-500.0,0.00020821,3]
[334646751,1723385450440,-500.0,0.00020821,3]
[334646752,1723385450450,-500.0,0.00020821,3]
[334646753,1723385450459,-452.61775234,0.00020821,3]
[334646754,1723385450472,-503.42778909,0.00020821,3]
[334646755,1723385450482,-404.23839521,0.00020821,3]
[334646756,1723385450492,-500.0,0.00020821,3]
[334646757,1723385450501,-500.0,0.00020821,3]
[334646758,1723385450511,-500.0,0.00020821,3]
[334646759,1723385450520,-500.0,0.00020821,3]
[334646760,1723385450530,-500.0,0.00020821,3]
[334646761,1723385450539,-500.0,0.00020821,3]
[334646762,1723385450549,-503.73910756,0.00020821,3]
[334646763,1723385450558,-500.0,0.00020821,3]
[334646764,1723385450568,-500.0,0.00020821,3]
[334646765,1723385450579,-500.0,0.00020821,3]
[334646766,1723385450589,-500.0,0.00020821,3]
[334646767,1723385450600,-500.0,0.00020821,3]
[334646768,1723385450610,-500.0,0.00020821,3]
[334646769,1723385450619,-500.0,0.00020821,3]
[334646770,1723385450630,-502.12988075,0.00020821,3]
[334646771,1723385450641,-500.0,0.00020821,3]
[334646772,1723385450651,-500.0,0.00020821,3]
[334646773,1723385450660,-500.0,0.00020821,3]
[334646774,1723385450670,-500.0,0.00020821,3]
[334646775,1723385450679,-500.0,0.00020821,3]
[334646776,1723385450689,-500.0,0.00020821,3]
[334646777,1723385450698,-500.0,0.00020821,3]
[334646778,1723385450708,-500.0,0.00020821,3]
[334646779,1723385450717,-324.05188359,0.00020821,3]
[334646780,1723385450726,-502.67851192,0.00020821,3]
[334646781,1723385450735,-500.0,0.00020821,3]
[334646782,1723385450745,-500.0,0.00020821,3]
[334646783,1723385450756,-791.8,0.00020821,3]
[334646784,1723385450766,-500.0,0.00020821,3]
[334646785,1723385450776,-500.0,0.00020821,3]
[334646786,1723385450785,-675.29,0.00020821,3]
[334646787,1723385450794,-503.72203065,0.00020821,3]
[334646788,1723385450804,-500.0,0.00020821,3]
[334646789,1723385450814,-500.0,0.00020821,3]
[334646790,1723385450823,-500.0,0.00020821,3]
[334646791,1723385450835,-611.76,0.00020821,3]
[334646792,1723385450844,-500.0,0.00020821,3]
[334646793,1723385450853,-500.0,0.00020821,3]
[334646794,1723385450862,-500.0,0.00020821,3]
[334646795,1723385450871,-500.0,0.00020821,3]
[334646796,1723385450882,-502.9727646,0.00020821,3]
[334646797,1723385450894,-500.0,0.00020821,3]
[334646798,1723385450905,-552.71,0.00020821,3]
[334646799,1723385450917,-500.0,0.00020821,3]
[334646800,1723385450928,-500.0,0.00020821,3]
[334646801,1723385450938,-500.0,0.00020821,3]
[334646802,1723385450947,-500.0,0.00020821,3]
[334646803,1723385450956,-500.0,0.00020821,3]
[334646804,1723385450966,-517.45880423,0.00020821,3]
[334646805,1723385450976,-578.44,0.00020821,3]
[334646806,1723385450985,-500.0,0.00020821,3]
[334646807,1723385451003,-507.26053928,0.00020821,3]
[334646808,1723385451013,-500.0,0.00020821,3]
[334646809,1723385451023,-500.0,0.00020821,3]
[334646810,1723385451032,-500.0,0.00020821,3]
[334646811,1723385451042,-500.0,0.00020821,3]
[334646812,1723385451052,-575.62361202,0.00020821,3]
[334646813,1723385451062,-500.0,0.00020821,3]
[334646814,1723385451071,-500.0,0.00020821,3]
[334646815,1723385451080,-512.62,0.00020821,3]
[334646816,1723385451090,-500.0,0.00020821,3]
[334646817,1723385451100,-501.31996922,0.00020821,3]
[334646818,1723385451109,-505.33805237,0.00020821,3]
[334646819,1723385451118,-500.0,0.00020821,3]
[334646820,1723385451129,-500.0,0.00020821,3]
[334646821,1723385451275,-500.0,0.00020821,3]
[334646822,1723385451285,-569.12,0.00020821,3]
[334646823,1723385451296,-500.0,0.00020821,3]
[334646824,1723385451307,-500.0,0.00020821,3]
[334646825,1723385451318,-500.0,0.00020821,3]
[334646826,1723385451328,-500.0,0.00020821,3]
[334646827,1723385451339,-500.0,0.00020821,3]
[334646828,1723385451348,-500.0,0.00020821,3]
[334646829,1723385451358,-500.0,0.00020821,3]
[334646830,1723385451367,-500.0,0.00020821,3]
[334646831,1723385451377,-500.0,0.00020821,3]
[334646832,1723385451386,-431.67585237,0.00020821,3]
[334646833,1723385451395,-500.0,0.00020821,3]
[334646834,1723385451404,-500.0,0.00020821,3]
[334646835,1723385451413,-787.36,0.00020821,3]
[334646836,1723385451422,-500.0,0.00020821,3]
[334646837,1723385451432,-757.32,0.00020821,3]
[334646838,1723385451442,-500.0,0.00020821,3]
[334646839,1723385451451,-500.0,0.00020821,3]
[334646840,1723385451460,-500.0,0.00020821,3]
[334646841,1723385451469,-505.78075926,0.00020821,3]
[334646842,1723385451480,-500.0,0.00020821,3]
[334646843,1723385451496,-500.0,0.00020821,3]
[334646844,1723385451509,-500.0,0.00020821,3]
[334646845,1723385451518,-500.0,0.00020821,3]
[334646846,1723385451527,-500.0,0.00020821,3]
[334646847,1723385451537,-500.0,0.00020821,3]
[334646848,1723385451546,-505.63348757,0.00020821,3]
[334646849,1723385451555,-917.93,0.00020821,3]
[334646850,1723385451565,-929.3,0.00020821,3]
[334646851,1723385451574,-500.0,0.00020821,3]
[334646852,1723385451583,-500.0,0.00020821,3]
[334646853,1723385451593,-889.87,0.00020821,3]
[334646854,1723385451602,-231.0427242,0.00020821,3]
[334646855,1723385451612,-500.0,0.00020821,3]
[334646856,1723385451621,-500.0,0.00020821,3]
[334646857,1723385451630,-500.0,0.00020821,3]
[334646858,1723385451640,-500.0,0.00020821,3]
[334646859,1723385451649,-811.87,0.00020821,3]
[334646860,1723385451658,-500.0,0.00020821,3]
[334646861,1723385451668,-500.0,0.00020821,3]
[334646862,1723385451677,-500.0,0.00020821,3]
[334646863,1723385451686,-500.0,0.00020821,3]
[334646864,1723385451695,-513.53862767,0.00020821,3]
[334646865,1723385451706,-500.0,0.00020821,3]
[334646866,1723385451716,-500.0,0.00020821,3]
[334646867,1723385451726,-500.0,0.00020821,3]
[334646868,1723385451735,-500.0,0.00020821,3]
[334646869,1723385451750,-500.0,0.00020821,3]
[334646870,1723385451759,-500.0,0.00020821,3]
[334646871,1723385451768,-504.45986182,0.00020821,3]
[334646872,1723385451778,-500.0,0.00020821,3]
[334646873,1723385451789,-500.0,0.00020821,3]
[334646874,1723385451798,-505.79909748,0.00020821,3]
[334646875,1723385451807,-500.0,0.00020821,3]
[334646876,1723385451816,-500.0,0.00020821,3]
[334646877,1723385451827,-500.0,0.00020821,3]
[334646878,1723385451841,-500.0,0.00020821,3]
[334646879,1723385451850,-500.0,0.00020821,3]
[334646880,1723385451859,-500.0,0.00020821,3]
[334646881,1723385451871,-500.0,0.00020821,3]
[334646882,1723385451880,-281.70951642,0.00020821,3]
[334646883,1723385451890,-500.0,0.00020821,3]
[334646884,1723385451899,-503.99,0.00020821,3]
[334646885,1723385451910,-500.0,0.00020821,3]
[334646886,1723385451920,-500.0,0.00020821,3]
[334646887,1723385451930,-2025.17,0.00020821,3]
[334646888,1723385451940,-500.0,0.00020821,3]
[334646889,1723385451950,-346.49956911,0.00020821,3]
[334646890,1723385451959,-500.0,0.00020821,3]
[334646891,1723385451969,-500.0,0.00020821,3]
[334646892,1723385451978,-1054.79,0.00020821,3]
[334646893,1723385451989,-500.0,0.00020821,3]
[334646894,1723385452007,-471.08900695,0.00020821,3]
[334646895,1723385452016,-500.0,0.00020821,3]
[334646896,1723385452025,-500.0,0.00020821,3]
[334646897,1723385452036,-500.0,0.00020821,3]
[334646898,1723385452045,-500.0,0.00020821,3]
[334646899,1723385452055,-500.0,0.00020821,3]
[334646900,1723385452066,-500.0,0.00020821,3]
[334646901,1723385452076,-1501.04,0.00020821,3]
[334646902,1723385452088,-221.60066534,0.00020821,3]
[334646903,1723385452097,-500.0,0.00020821,3]
[334646904,1723385452107,-526.52,0.00020821,3]
[334646905,1723385452117,-672.7,0.00020821,3]
[334646906,1723385452126,-783.95,0.00020821,3]
[334646907,1723385452136,-500.0,0.00020821,3]
[334646908,1723385452145,-729.94,0.00020821,3]
[334646909,1723385452155,-500.0,0.00020821,3]
[334646910,1723385452164,-561.47,0.00020821,3]
[334646911,1723385452174,-628.16,0.00020821,3]
[334646912,1723385452183,-720.16,0.00020821,3]
[334646913,1723385452193,-500.0,0.00020821,3]
[334646914,1723385452202,-500.0,0.00020821,3]
[334646915,1723385452212,-500.0,0.00020821,3]
[334646916,1723385452221,-500.0,0.00020821,3]
[334646917,1723385452231,-500.0,0.00020821,3]
[334646918,1723385452243,-500.0,0.00020821,3]
[334646919,1723385452252,-500.0,0.00020821,3]
[334646920,1723385452261,-500.0,0.00020821,3]
[334646921,1723385452270,-610.23349512,0.00020821,3]
[334646922,1723385452280,-669.58,0.00020821,3]
[334646923,1723385452289,-500.0,0.00020821,2]
[334646924,1723385452299,-500.0,0.00020821,3]
[334646925,1723385452308,-1175.94,0.00020821,3]
[334646926,1723385452319,-500.0,0.00020821,3]
[334646927,1723385452328,-506.61953356,0.00020821,3]
[334646928,1723385452338,-500.0,0.00020821,3]
[334646929,1723385452349,-500.0,0.00020821,3]
[334646930,1723385452358,-665.17,0.00020821,3]
[334646931,1723385452367,-587.79,0.00020821,3]
[334646932,1723385452376,-500.0,0.00020821,3]
[334646933,1723385452386,-500.0,0.00020821,3]
[334646934,1723385452397,-500.0,0.00020821,3]
[334646935,1723385452407,-500.0,0.00020821,3]
[334646936,1723385452416,-500.0,0.00020821,3]
[334646937,1723385452426,-500.0,0.00020821,3]
[334646938,1723385452436,-500.0,0.00020821,3]
[334646939,1723385452446,-500.0,0.00020821,3]
[334646940,1723385452455,-653.61,0.00020821,3]
[334646941,1723385452465,-500.0,0.00020821,3]
[334646942,1723385452475,-558.95,0.00020821,3]
[334646943,1723385452485,-647.43,0.00020821,3]
[334646944,1723385452499,-524.41572414,0.00020821,3]
[334646945,1723385452510,-500.0,0.00020821,3]
[334646946,1723385452520,-500.0,0.00020821,3]
[334646947,1723385452531,-704.08,0.00020821,3]
[334646948,1723385452541,-877.67,0.00020821,3]
[334646949,1723385452551,-1015.54,0.00020821,3]
[334646950,1723385452560,-1248.59,0.00020821,3]
[334646951,1723385452570,-500.0,0.00020821,3]
[334646952,1723385452580,-630.36,0.00020821,3]
[334646953,1723385452590,-500.0,0.00020821,3]
[334646954,1723385452599,-500.0,0.00020821,3]
[334646955,1723385452610,-500.0,0.00020821,3]
[334646956,1723385452619,-500.0,0.00020821,3]
[334646957,1723385452629,-1261.66,0.00020821,3]
[334646958,1723385452638,-500.0,0.00020821,3]
[334646959,1723385452647,-500.0,0.00020821,3]
[334646960,1723385452656,-500.0,0.00020821,3]
[334646961,1723385452665,-505.11019263,0.00020821,3]
[334646962,1723385452675,-1336.24,0.00020821,3]
[334646963,1723385452686,-500.0,0.00020821,3]
[334646964,1723385452696,-500.0,0.00020821,3]
[334646965,1723385452707,-1047.72,0.00020821,3]
[334646966,1723385452716,-500.0,0.00020821,3]
[334646967,1723385452726,-500.0,0.00020821,3]
[334646968,1723385452739,-500.0,0.00020821,3]
[334646969,1723385452749,-1396.69,0.00020821,3]
[334646970,1723385452759,-504.87484438,0.00020821,3]
[334646971,1723385452769,-502.98517812,0.00020821,3]
[334646972,1723385452778,-500.0,0.00020821,3]
[334646973,1723385452788,-500.0,0.00020821,3]
[334646974,1723385452798,-503.40576337,0.00020821,3]
[334646975,1723385452807,-500.0,0.00020821,3]
[334646976,1723385452817,-500.0,0.00020821,3]
[334646977,1723385452827,-506.01121711,0.00020821,3]
[334646978,1723385452840,-500.0,0.00020821,3]
[334646979,1723385452849,-500.0,0.00020821,3]
[334646980,1723385452859,-500.0,0.00020821,3]
[334646981,1723385452868,-500.0,0.00020821,3]
[334646982,1723385452879,-500.0,0.00020821,3]
[334646983,1723385452888,-512.32607829,0.00020821,3]
[334646984,1723385452898,-501.66092667,0.00020821,3]
[334646985,1723385452909,-500.0,0.00020821,3]
[334646986,1723385452919,-500.0,0.00020821,3]
[334646987,1723385452928,-508.8221319,0.00020821,3]
[334646988,1723385452938,-500.0,0.00020821,3]
[334646989,1723385452948,-505.81764935,0.00020821,3]
[334646990,1723385452959,-500.0,0.00020821,3]
[334646991,1723385452968,-500.0,0.00020821,3]
[334646992,1723385452978,-1538.02,0.00020821,3]
[334646993,1723385452990,-500.0,0.00020821,3]
[334646994,1723385453000,-500.0,0.00020821,3]
[334646995,1723385453009,-500.0,0.00020821,3]
[334646996,1723385453018,-777.5,0.00020821,3]
[334646997,1723385453028,-500.0,0.00020821,3]
[334646998,1723385453037,-500.0,0.00020821,3]
[334646999,1723385453047,-500.0,0.00020821,3]
[334647000,1723385453056,-677.24,0.00020821,3]
[334647001,1723385453067,-500.0,0.00020821,3]
[334647002,1723385453076,-1020.6,0.00020821,3]
[334647003,1723385453085,-5526.95,0.00020821,3]
[334647004,1723385453095,-500.88151954,0.00020821,3]
[334647005,1723385453105,-500.0,0.00020821,3]
[334647006,1723385453114,-500.0,0.00020821,3]
[334647007,1723385453124,-501.06827492,0.00020821,3]
[334647008,1723385453133,-500.0,0.00020821,3]
[334647009,1723385453143,-500.0,0.00020821,3]
[334647010,1723385453153,-1223.85,0.00020821,3]
[334647011,1723385453163,-501.6350984,0.00020821,3]
[334647012,1723385453172,-735.65,0.00020821,3]
[334647013,1723385453182,-2127.83,0.00020821,3]
[334647014,1723385453191,-500.0,0.00020821,3]
[334647015,1723385453204,-500.0,0.00020821,3]
[334647016,1723385453213,-1348.68,0.00020821,3]
[334647017,1723385453223,-500.0,0.00020821,3]
[334647018,1723385453232,-1021.44928035,0.00020821,3]
[334647019,1723385453354,-28.13065625,0.00017389,2]
[334647020,1723385453773,-2533.49900901,0.00015711,2]
[334647021,1723385536426,404.08727484,9.999e-05,2]
[334647022,1723385593938,404.08727484,0.0001212,2]
[334647023,1723385634228,404.08727484,0.00014691,2]
[334647024,1723385652066,70969.48493059,0.00025,60]
[334647025,1723385654621,205.17764203,0.00014691,2]
[334647026,1723385665923,309.06792299,0.00014691,2]
[334647027,1723385667204,459.65038958,0.00015,4]
[334647029,1723385816164,250.0,0.0001486,2]
[334647030,1723385816364,250.0,0.00014901,2]
[334647031,1723385816571,250.0,0.00014942,2]
[334647032,1723385816805,250.0,0.00014983,2]
[334647033,1723385860108,160.588426,0.00014247,2]
[334647034,1723385989959,305.324744,0.00014407,2]
[334647035,1723386145901,24900.0,0.00014407,2]
[334647036,1723386179828,269.65614473,0.00017019,7]
[334647038,1723386191533,850.13586547,9.999e-05,2]
[334647040,1723386307853,250.0,0.000148,2]
[334647041,1723386308255,250.0,0.00014841,2]
[334647042,1723386308485,250.0,0.00014881,2]
[334647043,1723386308723,250.0,0.00014922,2]
[334647044,1723386308915,250.0,0.00014962,2]
[334647045,1723386309130,250.0,0.00015003,2]
[334647046,1723386315159,160.539455,0.00014247,2]
[334647047,1723386440129,-250.0,0.00015044,2]
[334647048,1723386440156,-250.0,0.00015084,2]
[334647049,1723386440180,-250.0,0.00015125,2]
[334647050,1723386440204,-250.0,0.00015165,2]
[334647051,1723386440227,-250.0,0.00015206,2]
[334647052,1723386440252,-250.0,0.00015247,2]
[334647053,1723386440276,-250.0,0.00015287,2]
[334647054,1723386440301,-250.0,0.00015328,2]
[334647055,1723386440324,-3150.79744643,0.00015368,2]
[334647056,1723386440347,-250.0,0.00015368,2]
[334647057,1723386440369,-250.0,0.00015409,2]
[334647058,1723386440390,-250.0,0.0001545,2]
[334647059,1723386440412,-250.0,0.0001549,2]
[334647060,1723386440432,-203.8560335,0.00015529,2]
[334647061,1723386440454,-250.0,0.00015531,2]
[334647062,1723386440478,-250.0,0.00015571,2]
[334647063,1723386440500,-300.0,0.00015707,2]
[334647064,1723386440522,-9651.03918107,0.00015708,2]